bitfinex/quotes_BTCUSD_20250428
["timestamp","ask_amount","ask_price","bid_price","bid_amount"]
[1745798990440,0.3474435,93540.0,93539.0,2.71165053]
[1745798990846,0.3474435,93540.0,93539.0,2.71465053]
[1745798991806,0.3474435,93540.0,93539.0,2.71165053]
[1745798992220,0.3474435,93540.0,93539.0,2.71465053]
[1745798992669,0.3474435,93540.0,93539.0,2.71165053]
[1745798992845,0.3474435,93540.0,93539.0,2.71465053]
[1745798993365,0.3474435,93540.0,93539.0,2.71165053]
[1745798993571,0.3474435,93540.0,93539.0,2.71465053]
[1745798995649,0.3474435,93540.0,93539.0,2.71165053]
[1745798995873,0.3474435,93540.0,93539.0,2.71365053]
[1745798996241,0.3474435,93540.0,93539.0,2.71165053]
[1745798996694,0.3474435,93540.0,93539.0,2.71365053]
[1745798999043,0.3474435,93540.0,93539.0,2.67065943]
[1745799000435,0.37717242,93540.0,93539.0,2.67065943]
[1745799000653,0.48406256,93540.0,93539.0,2.67065943]
[1745799001196,0.48406256,93540.0,93539.0,2.66063007]
[1745799001398,0.48406256,93540.0,93539.0,2.64809162]
[1745799002038,0.48406256,93540.0,93539.0,2.64609162]
[1745799004001,0.91020341,93540.0,93539.0,2.64609162]
[1745799004214,0.95772474,93540.0,93539.0,2.64609162]
[1745799004883,1.15772474,93540.0,93539.0,2.64609162]
[1745799005309,1.15872474,93540.0,93539.0,2.64609162]
[1745799005504,1.15872474,93540.0,93539.0,2.45249162]
[1745799005505,1.82482174,93540.0,93539.0,2.45249162]
[1745799005799,1.73588663,93540.0,93539.0,2.29359162]
[1745799005926,1.73788663,93540.0,93539.0,2.29359162]
[1745799006138,1.73788663,93540.0,93539.0,1.54369162]
[1745799006463,1.73788663,93540.0,93539.0,1.49113046]
[1745799006464,1.41388763,93540.0,93539.0,1.49113046]
[1745799007229,1.41188763,93540.0,93539.0,1.49113046]
[1745799007643,1.41488763,93540.0,93539.0,1.49113046]
[1745799008004,1.41488763,93540.0,93539.0,1.48109559]
[1745799008350,1.33834763,93540.0,93539.0,1.48109559]
[1745799008552,1.33534763,93540.0,93539.0,1.48109559]
[1745799008969,1.27430763,93540.0,93539.0,1.48109559]
[1745799010402,1.27130763,93540.0,93539.0,1.48109559]
[1745799010702,1.30494563,93540.0,93539.0,1.48109559]
[1745799010935,1.16628963,93540.0,93539.0,1.48109559]
[1745799011124,1.16328963,93540.0,93539.0,1.48109559]
[1745799011330,0.19814878,93540.0,93539.0,1.48109559]
[1745799011549,0.19458389,93540.0,93539.0,1.48109559]
[1745799011668,0.53458389,93540.0,93539.0,1.48109559]
[1745799011868,0.19158389,93540.0,93539.0,1.48109559]
[1745799012174,0.19458389,93540.0,93539.0,1.48109559]
[1745799012656,0.20912474,93540.0,93539.0,1.48109559]
[1745799013840,0.19458389,93540.0,93539.0,1.48109559]
[1745799014053,0.19158389,93540.0,93539.0,1.52719559]
[1745799014263,0.05796483,93540.0,93539.0,1.52719559]
[1745799014429,0.05796483,93540.0,93539.0,1.52819559]
[1745799014857,0.05496483,93540.0,93539.0,1.52819559]
[1745799015216,0.05696483,93540.0,93539.0,1.52819559]
[1745799015816,0.05496483,93540.0,93539.0,1.52819559]
[1745799016221,0.08466012,93540.0,93539.0,1.52819559]
[1745799016420,0.05496483,93540.0,93539.0,1.52819559]
[1745799016661,0.05496483,93540.0,93539.0,1.48519065]
[1745799016841,0.08465925,93540.0,93539.0,1.48519065]
[1745799017059,0.08465925,93540.0,93539.0,1.48619065]
[1745799017260,0.42465925,93540.0,93539.0,1.48619065]
[1745799020575,0.42465925,93540.0,93539.0,1.48519065]
[1745799020794,0.53154939,93540.0,93539.0,1.48519065]
[1745799020997,0.95669024,93540.0,93539.0,1.43909065]
[1745799021247,1.44881224,93540.0,93539.0,1.43909065]
[1745799021645,1.44881224,93540.0,93539.0,1.42654876]
[1745799021808,1.18849824,93540.0,93539.0,1.42654876]
[1745799022568,1.18849824,93540.0,93539.0,1.416515]
[1745799023399,1.19149824,93540.0,93539.0,1.416515]
[1745799024020,1.18849824,93540.0,93539.0,1.416515]
[1745799024226,1.19149824,93540.0,93539.0,1.416515]
[1745799025398,1.19249824,93540.0,93539.0,1.416515]
[1745799025600,1.2122693,93540.0,93539.0,1.29608802]
[1745799026198,1.2112693,93540.0,93539.0,1.29608802]
[1745799026411,1.1804613,93540.0,93539.0,1.29608802]
[1745799026586,0.94614939,93540.0,93539.0,1.24351681]
[1745799027088,0.60614939,93540.0,93539.0,1.24351681]
[1745799027673,0.96069024,93540.0,93539.0,1.24351681]
[1745799027905,0.60314939,93540.0,93539.0,1.24351681]
[1745799028106,0.94314939,93540.0,93539.0,1.24351681]
[1745799028316,0.94614939,93540.0,93539.0,1.24351681]
[1745799028625,0.96069024,93540.0,93539.0,1.24351681]
[1745799028829,0.96069024,93540.0,93539.0,1.23348349]
[1745799029638,0.62069024,93540.0,93539.0,1.23348349]
[1745799030054,0.96069024,93540.0,93539.0,1.23348349]
[1745799032827,0.96069024,93540.0,93539.0,1.19047544]
[1745799033231,1.78209824,93540.0,93539.0,1.19047544]
[1745799033436,1.86592638,93540.0,93539.0,1.19047544]
[1745799033635,1.87248428,93540.0,93539.0,1.19047544]
[1745799034001,1.80844428,93540.0,93539.0,1.19047544]
[1745799034216,1.80544428,93540.0,93539.0,1.18294847]
[1745799034419,1.80844428,93540.0,93539.0,1.18294847]
[1745799034617,1.80844428,93540.0,93539.0,1.17010237]
[1745799034826,1.54357128,93540.0,93539.0,1.17010237]
[1745799035173,1.31698938,93540.0,93539.0,1.1600664]
[1745799035399,1.28501038,93540.0,93539.0,1.1600664]
[1745799035584,1.34980068,93540.0,93539.0,1.1600664]
[1745799035987,1.34680068,93540.0,93539.0,1.1600664]
[1745799036427,1.35180068,93540.0,93539.0,1.1600664]
[1745799036601,1.33201254,93540.0,93539.0,1.1600664]
[1745799036831,1.32701254,93540.0,93539.0,1.1600664]
[1745799037026,1.33101254,93540.0,93539.0,1.1600664]
[1745799037222,1.33101254,93540.0,93539.0,1.15504931]
[1745799037832,1.3507953,93540.0,93539.0,1.15504931]
[1745799038881,1.286005,93540.0,93539.0,1.15504931]
[1745799039389,1.286005,93540.0,93539.0,1.10247944]
[1745799040752,1.486005,93540.0,93539.0,1.10247944]
[1745799040935,1.49256291,93540.0,93539.0,1.10247944]
[1745799041608,1.49256291,93540.0,93539.0,1.09244448]
[1745799042318,2.87748591,93540.0,93539.0,1.09244448]
[1745799042521,2.46888191,93540.0,93539.0,1.09244448]
[1745799043490,2.53292191,93540.0,93539.0,1.06844448]
[1745799043706,2.60433191,93540.0,93539.0,1.06844448]
[1745799043882,2.58292191,93540.0,93539.0,1.06844448]
[1745799044287,2.58292191,93540.0,93539.0,1.06091602]
[1745799044490,2.58292191,93540.0,93539.0,1.04836856]
[1745799045165,2.58849236,93540.0,93539.0,1.04836856]
[1745799045377,2.58449236,93540.0,93539.0,0.86212661]
[1745799045581,2.59049236,93540.0,93539.0,0.86212661]
[1745799046114,2.58449236,93540.0,93539.0,0.7952074]
[1745799046323,2.59649236,93540.0,93539.0,0.7962074]
[1745799046970,2.59649236,93540.0,93539.0,0.71845902]
[1745799047170,0.88340912,93533.0,93532.0,3.37003555]
[1745799047323,2.46069421,93533.0,93532.0,2.04001645]
[1745799047533,4.17463563,93533.0,93532.0,0.41330868]
[1745799047743,0.85921788,93530.0,93529.0,1e-08]
[1745799047976,1.11324244,93530.0,93529.0,1e-08]
[1745799048174,0.55554085,93526.0,93525.0,3.09210624]
[1745799048373,2.46076395,93526.0,93525.0,2.27872688]
[1745799048578,2.90105837,93526.0,93525.0,1.49706184]
[1745799048802,2.91093659,93526.0,93525.0,1.49706184]
[1745799049010,2.91093659,93526.0,93525.0,3e-08]
[1745799049213,1.22668959,93526.0,93525.0,3e-08]
[1745799049549,1.25247235,93526.0,93525.0,0.00100003]
[1745799049755,1.95247235,93526.0,93525.0,0.00100003]
[1745799049966,3.63671935,93526.0,93525.0,0.00100003]
[1745799050100,3.64416285,93526.0,93525.0,0.00100003]
[1745799050310,3.64416285,93526.0,93517.0,2.84109844]
[1745799050311,0.88344342,93518.0,93517.0,2.84109844]
[1745799050535,2.0294494,93518.0,93517.0,2.26099661]
[1745799050735,4.22701659,93518.0,93517.0,2.26099661]
[1745799050937,4.23446009,93518.0,93517.0,2.20840522]
[1745799051179,4.23546009,93518.0,93517.0,2.20840522]
[1745799051377,4.28428005,93518.0,93517.0,2.07895612]
[1745799051611,2.60003305,93518.0,93517.0,2.07895612]
[1745799052243,2.55121309,93518.0,93517.0,2.07393509]
[1745799052380,3.82474309,93518.0,93517.0,2.06495865]
[1745799052803,3.82885976,93518.0,93517.0,2.06495865]
[1745799053026,2.54043033,93518.0,93517.0,2.06495865]
[1745799053379,3.31841315,93518.0,93517.0,1.71520573]
[1745799053597,3.34333368,93518.0,93517.0,1.71520573]
[1745799053952,3.34333368,93518.0,93517.0,1.55187478]
[1745799054151,3.34333368,93518.0,93517.0,1.55599038]
[1745799054364,3.33433368,93518.0,93517.0,1.54745874]
[1745799054711,3.4705405,93518.0,93517.0,1.54745874]
[1745799054926,5.10596754,93518.0,93517.0,1.54745874]
[1745799055146,5.09996754,93518.0,93517.0,1.54745874]
[1745799055353,5.06572912,93518.0,93517.0,1.50441364]
[1745799055561,5.06432912,93518.0,93517.0,1.50441364]
[1745799055979,5.05832912,93518.0,93517.0,1.50441364]
[1745799056101,4.72432912,93518.0,93517.0,1.38277722]
[1745799056293,5.06432912,93518.0,93517.0,1.38277722]
[1745799056525,5.07886997,93518.0,93517.0,1.38237722]
[1745799056729,4.73886997,93518.0,93517.0,1.38237722]
[1745799056928,5.07886997,93518.0,93517.0,1.38237722]
[1745799057391,5.08026997,93518.0,93517.0,1.38237722]
[1745799057783,5.08526997,93518.0,93517.0,1.27073725]
[1745799058127,5.08526997,93518.0,93517.0,1.1607763]
[1745799058294,5.08026997,93518.0,93517.0,1.1607763]
[1745799058932,3.50291311,93518.0,93517.0,1.1607763]
[1745799059164,5.19216011,93518.0,93517.0,1.1607763]
[1745799059607,4.85132611,93518.0,93517.0,1.04913633]
[1745799059809,4.85132611,93518.0,93517.0,1.04502073]
[1745799060186,4.85132611,93518.0,93517.0,0.83509528]
[1745799060423,4.85189656,93518.0,93517.0,0.83509528]
[1745799060627,3.50848356,93518.0,93517.0,0.83509528]
[1745799060832,5.19973056,93518.0,93517.0,0.83509528]
[1745799061345,5.19829014,93518.0,93517.0,0.83509528]
[1745799061613,5.20529014,93518.0,93517.0,0.67084994]
[1745799062024,5.19074929,93518.0,93517.0,0.67084994]
[1745799062224,5.13334929,93518.0,93517.0,0.67084994]
[1745799062497,5.14789014,93518.0,93517.0,0.67084994]
[1745799062722,5.14044664,93518.0,93517.0,0.67084994]
[1745799063030,5.12590579,93518.0,93517.0,0.67084994]
[1745799063265,4.42590579,93518.0,93517.0,0.67084994]
[1745799063638,4.43344664,93518.0,93517.0,0.67084994]
[1745799064066,4.44784418,93518.0,93517.0,0.67084994]
[1745799064389,4.38280418,93518.0,93517.0,0.67084994]
[1745799064586,4.04280418,93518.0,93517.0,0.67084994]
[1745799064826,3.62126333,93518.0,93517.0,0.67084994]
[1745799065062,2.24093433,93518.0,93517.0,0.67084994]
[1745799065272,1.18813938,93518.0,93517.0,0.67084994]
[1745799066149,1.52813938,93518.0,93517.0,0.67084994]
[1745799066395,2.65297433,93518.0,93517.0,0.67084994]
[1745799066595,2.65951518,93518.0,93517.0,0.67084994]
[1745799066890,1.52613938,93518.0,93517.0,0.67084994]
[1745799067030,1.52613938,93518.0,93517.0,0.66332068]
[1745799067238,1.52113938,93518.0,93517.0,0.66332068]
[1745799067788,1.8905128,93518.0,93517.0,0.66332068]
[1745799068537,1.9164108,93518.0,93517.0,0.66432068]
[1745799069761,1.9184108,93518.0,93517.0,0.66432068]
[1745799070179,1.85542288,93518.0,93517.0,0.66432068]
[1745799070420,1.85342288,93518.0,93517.0,0.66432068]
[1745799070594,1.74792388,93518.0,93517.0,0.66432068]
[1745799070806,1.76246473,93518.0,93517.0,0.62129495]
[1745799071005,1.76146473,93518.0,93517.0,0.62129495]
[1745799071236,1.82650473,93518.0,93517.0,0.62129495]
[1745799071430,1.82650473,93518.0,93517.0,0.62029495]
[1745799071431,1.83206372,93518.0,93517.0,0.62029495]
[1745799071674,1.83106372,93518.0,93517.0,0.62029495]
[1745799071883,1.76702372,93518.0,93517.0,0.62029495]
[1745799072604,1.76802372,93518.0,93517.0,0.62029495]
[1745799072825,1.76702372,93518.0,93517.0,0.62029495]
[1745799073055,1.83106372,93518.0,93517.0,0.62029495]
[1745799073291,1.83106372,93518.0,93517.0,0.61527529]
[1745799073489,1.76702372,93518.0,93517.0,0.55013951]
[1745799073641,1.76602372,93518.0,93517.0,0.55013951]
[1745799073847,1.77102372,93518.0,93517.0,0.55013951]
[1745799074050,1.83530372,93518.0,93517.0,0.55013951]
[1745799074244,1.83030372,93518.0,93517.0,0.55013951]
[1745799074667,1.83630372,93518.0,93517.0,0.55013951]
[1745799074986,1.85304498,93518.0,93517.0,0.55013951]
[1745799075366,1.88519798,93518.0,93517.0,0.55013951]
[1745799075753,1.88619798,93518.0,93517.0,0.55013951]
[1745799076387,1.88019798,93518.0,93517.0,0.55013951]
[1745799076612,1.95828823,93518.0,93517.0,0.55013951]
[1745799076834,2.8731508,93518.0,93517.0,0.1959435]
[1745799077044,0.40554085,93511.0,93510.0,3.47673128]
[1745799077263,2.36716919,93511.0,93510.0,2.35620413]
[1745799077486,2.36716919,93511.0,93510.0,1.6626642]
[1745799077871,2.36716919,93511.0,93510.0,0.56303331]
[1745799077872,3.06716919,93511.0,93510.0,0.56303331]
[1745799078266,3.07316919,93511.0,93510.0,0.56303331]
[1745799078513,1.28371544,93504.0,93503.0,4.21933169]
[1745799078716,3.27155799,93504.0,93503.0,3.52252708]
[1745799078921,3.13143156,93504.0,93503.0,2.83739794]
[1745799079126,3.53143156,93504.0,93503.0,2.83739794]
[1745799079298,3.53700201,93504.0,93503.0,2.1522688]
[1745799079499,3.91232132,93504.0,93503.0,1.80970423]
[1745799079705,3.91232132,93504.0,93503.0,1.00293867]
[1745799079903,3.91232132,93504.0,93503.0,0.6603741]
[1745799080069,3.91232132,93504.0,93503.0,0.31780953]
[1745799080265,0.95454085,93497.0,93496.0,4.43166105]
[1745799080471,3.85494582,93497.0,93496.0,4.43166105]
[1745799081502,3.8550146,93497.0,93496.0,4.43166105]
[1745799082068,4.3630576,93497.0,93496.0,4.43166105]
[1745799082485,4.2987776,93497.0,93496.0,4.43166105]
[1745799082915,4.3017776,93497.0,93496.0,4.43166105]
[1745799083257,4.2987776,93497.0,93496.0,4.43166105]
[1745799083487,2.6145306,93497.0,93496.0,4.43166105]
[1745799083690,4.3027776,93497.0,93496.0,4.43166105]
[1745799084045,4.3061928,93497.0,93496.0,4.43166105]
[1745799084246,4.3091928,93497.0,93496.0,4.43166105]
[1745799085066,0.754197,93497.0,93496.0,4.52576105]
[1745799085274,1.094197,93497.0,93496.0,4.52576105]
[1745799085524,0.751197,93497.0,93496.0,4.52576105]
[1745799085724,0.87632343,93497.0,93496.0,4.43266105]
[1745799085932,0.88032343,93497.0,93496.0,4.43266105]
[1745799086136,1.22032343,93497.0,93496.0,4.43266105]
[1745799086365,1.92032343,93497.0,93496.0,4.43266105]
[1745799086506,1.91632343,93497.0,93496.0,4.43266105]
[1745799086864,1.21932343,93497.0,93496.0,4.38961409]
[1745799087201,1.21632343,93497.0,93496.0,4.38961409]
[1745799087390,1.21732343,93497.0,93496.0,4.38961409]
[1745799088393,0.87732343,93497.0,93496.0,4.38961409]
[1745799088861,1.15433551,93497.0,93496.0,4.38961409]
[1745799088995,1.13455705,93497.0,93496.0,4.38961409]
[1745799089587,1.112601,93497.0,93496.0,4.38961409]
[1745799089816,0.944094,93497.0,93496.0,4.38961409]
[1745799090704,1.36923485,93497.0,93496.0,4.38961409]
[1745799090932,1.38900793,93497.0,93496.0,4.38961409]
[1745799091537,1.39642345,93497.0,93496.0,4.37706385]
[1745799092286,1.39542345,93497.0,93496.0,4.37706385]
[1745799092488,1.38900793,93497.0,93496.0,4.37706385]
[1745799092720,1.321282,93497.0,93496.0,4.37706385]
[1745799092923,1.259319,93497.0,93496.0,4.37706385]
[1745799093265,1.27385985,93497.0,93496.0,4.37706385]
[1745799094210,0.731214,93497.0,93496.0,4.37706385]
[1745799094417,0.36239766,93497.0,93496.0,4.47476385]
[1745799094611,0.31239766,93497.0,93496.0,4.47476385]
[1745799095317,0.31139766,93497.0,93496.0,4.47476385]
[1745799095728,0.31239766,93497.0,93496.0,4.47476385]
[1745799096126,0.31139766,93497.0,93496.0,4.47476385]
[1745799096356,0.31239766,93497.0,93496.0,4.47476385]
[1745799096972,0.31239766,93497.0,93496.0,4.42216519]
[1745799098388,0.001,93497.0,93496.0,4.42216519]
[1745799103274,0.001,93497.0,93496.0,4.37913983]
[1745799103480,0.06,93505.0,93496.0,4.37913983]
[1745799103744,0.001,93518.0,93496.0,4.37913983]
[1745799103745,0.001,93518.0,93497.0,0.15669903]
[1745799103953,0.02897031,93510.0,93499.0,0.0192]
[1745799104155,0.36897031,93510.0,93500.0,0.00213876]
[1745799104411,0.02897031,93509.0,93500.0,0.00213876]
[1745799104616,0.001,93505.0,93500.0,0.00213876]
[1745799104775,0.32317031,93510.0,93501.0,0.0461]
[1745799104983,0.32317031,93510.0,93502.0,0.03793877]
[1745799105178,0.02874394,93509.0,93502.0,0.03793877]
[1745799105382,0.32417031,93510.0,93503.0,0.10689014]
[1745799105708,0.32417031,93510.0,93504.0,0.00213872]
[1745799105901,0.32317031,93510.0,93505.0,0.0462]
[1745799106277,0.32417031,93510.0,93505.0,0.0462]
[1745799106712,0.001,93510.0,93505.0,0.0462]
[1745799106912,0.02851153,93509.0,93505.0,0.0462]
[1745799107116,0.02851153,93509.0,93505.0,0.20076]
[1745799107715,0.02951153,93510.0,93505.0,0.0502]
[1745799107894,0.0285254,93509.0,93505.0,0.0502]
[1745799108251,0.0285254,93509.0,93505.0,0.0462]
[1745799108447,0.001,93509.0,93505.0,0.0502]
[1745799110393,0.001,93509.0,93505.0,0.004]
[1745799111039,0.02850487,93508.0,93505.0,0.004]
[1745799111455,0.001,93509.0,93505.0,0.004]
[1745799111841,0.001,93509.0,93504.0,0.15456]
[1745799111842,0.0534,93511.0,93504.0,0.15456]
[1745799112054,0.02850314,93510.0,93504.0,0.15456]
[1745799112261,0.02850314,93510.0,93505.0,0.007]
[1745799112262,0.001,93508.0,93505.0,0.007]
[1745799112723,0.34,93506.0,93505.0,0.007]
[1745799112924,3.82659911,93506.0,93505.0,0.007]
[1745799113238,3.84113996,93506.0,93505.0,0.007]
[1745799113457,0.54,93497.0,93491.0,0.004]
[1745799113574,2.14816845,93497.0,93491.0,0.004]
[1745799114003,3.22250425,93497.0,93491.0,0.004]
[1745799114534,3.53490191,93497.0,93496.0,4.28489867]
[1745799114724,3.22350425,93497.0,93496.0,4.28489867]
[1745799115396,3.42450425,93497.0,93496.0,4.28489867]
[1745799115601,3.47280425,93497.0,93496.0,4.09132573]
[1745799116208,3.44429794,93497.0,93496.0,4.09132573]
[1745799116418,3.44429794,93497.0,93496.0,4.08832573]
[1745799116419,3.44329794,93497.0,93496.0,4.08832573]
[1745799116617,3.44329794,93497.0,93496.0,4.09032573]
[1745799116865,3.44429794,93497.0,93496.0,4.09032573]
[1745799117040,1.97152594,93497.0,93496.0,4.03772868]
[1745799117242,5.27008497,93497.0,93496.0,4.02819792]
[1745799117559,5.27008497,93497.0,93496.0,4.02919792]
[1745799117560,5.27208497,93497.0,93496.0,4.02919792]
[1745799117763,5.20550897,93497.0,93496.0,4.02919792]
[1745799117941,5.20350897,93497.0,93496.0,4.02819792]
[1745799118346,5.20650897,93497.0,93496.0,4.02919792]
[1745799118749,5.26949689,93497.0,93496.0,4.02919792]
[1745799118974,3.66813734,93497.0,93496.0,4.02919792]
[1745799119446,3.66813734,93497.0,93496.0,4.02819792]
[1745799119621,3.66513734,93497.0,93496.0,4.02819792]
[1745799119933,3.66072731,93497.0,93496.0,3.98515686]
[1745799120543,3.58911446,93497.0,93496.0,3.98515686]
[1745799120767,2.58286846,93497.0,93496.0,3.98515686]
[1745799121466,2.57986846,93497.0,93496.0,3.98515686]
[1745799123220,2.79440931,93497.0,93496.0,3.98515686]
[1745799123424,2.79540931,93497.0,93496.0,3.98515686]
[1745799123898,2.79440931,93497.0,93496.0,3.98515686]
[1745799124125,2.85868931,93497.0,93496.0,3.98515686]
[1745799124342,2.85968931,93497.0,93496.0,3.98515686]
[1745799124782,2.85868931,93497.0,93496.0,3.98515686]
[1745799124989,2.86068931,93497.0,93496.0,3.98515686]
[1745799125957,2.79770139,93497.0,93496.0,3.98515686]
[1745799126924,2.98316054,93497.0,93496.0,3.98515686]
[1745799127150,2.78316054,93497.0,93496.0,3.98515686]
[1745799127358,2.79570139,93497.0,93496.0,3.98515686]
[1745799127738,2.79670139,93497.0,93496.0,3.98515686]
[1745799128120,2.79570139,93497.0,93496.0,3.98515686]
[1745799128325,2.30933737,93497.0,93496.0,3.19168338]
[1745799128502,2.29951258,93497.0,93496.0,2.05530756]
[1745799128703,2.33168158,93497.0,93496.0,1.22020803]
[1745799128939,1.00554085,93490.0,93489.0,4.24885381]
[1745799129107,6.2572415,93490.0,93489.0,3.30677524]
[1745799129314,6.33452849,93490.0,93489.0,2.5676255]
[1745799129508,1.33452849,93490.0,93489.0,2.5676255]
[1745799129709,1.34192023,93490.0,93489.0,2.5676255]
[1745799129934,1.29192023,93490.0,93489.0,2.56009112]
[1745799130277,1.2941789,93490.0,93489.0,2.38150432]
[1745799130451,1.3040259,93490.0,93489.0,2.1487236]
[1745799130646,1.5712643,93490.0,93489.0,1.68138984]
[1745799130870,1.52795252,93490.0,93489.0,1.26111017]
[1745799131101,1.52795252,93490.0,93489.0,1.26088267]
[1745799131312,1.51810552,93490.0,93489.0,1.23688267]
[1745799131536,1.51910552,93490.0,93489.0,1.23688267]
[1745799131727,2.88190552,93490.0,93489.0,1.23688267]
[1745799131888,2.83190552,93490.0,93489.0,1.23688267]
[1745799132055,2.88190552,93490.0,93489.0,0.80368804]
[1745799132256,2.87450552,93490.0,93489.0,0.80368804]
[1745799132907,3.57450552,93490.0,93489.0,0.80368804]
[1745799133287,3.58190552,93490.0,93489.0,0.80368804]
[1745799133622,2.21910552,93490.0,93489.0,0.80368804]
[1745799133823,2.34409501,93490.0,93489.0,0.80368804]
[1745799134247,2.34409501,93490.0,93489.0,0.44270968]
[1745799134450,2.39001505,93490.0,93489.0,0.44270968]
[1745799134653,3.75281505,93490.0,93489.0,0.3570243]
[1745799134858,3.7724782,93490.0,93489.0,0.22849623]
[1745799135012,3.7724782,93490.0,93489.0,0.05712485]
[1745799135243,3.7724782,93490.0,93489.0,0.00449581]
[1745799135444,0.46982085,93486.0,93481.0,0.01]
[1745799135648,2.3703119,93486.0,93481.0,0.01]
[1745799135853,2.38997505,93486.0,93481.0,0.01]
[1745799136372,2.39734816,93486.0,93481.0,0.01]
[1745799136572,4.16914816,93486.0,93481.0,0.01]
[1745799136974,4.14517295,93486.0,93481.0,0.01]
[1745799137538,4.13617295,93486.0,93481.0,0.01]
[1745799138144,0.46982085,93483.0,93482.0,4.62296672]
[1745799138337,1.27671099,93483.0,93482.0,4.62742576]
[1745799138554,1.34902325,93483.0,93482.0,4.62742576]
[1745799138758,1.37851715,93483.0,93482.0,4.62742576]
[1745799139047,1.69803715,93483.0,93482.0,4.62742576]
[1745799139226,1.79279715,93483.0,93482.0,4.62742576]
[1745799139573,1.80079715,93483.0,93482.0,4.62742576]
[1745799139780,1.815338,93483.0,93482.0,4.62742576]
[1745799139985,1.857338,93483.0,93482.0,4.62742576]
[1745799140195,1.7778441,93483.0,93482.0,4.62742576]
[1745799140404,1.7838441,93483.0,93482.0,4.62142576]
[1745799140929,1.6890841,93483.0,93482.0,4.62142576]
[1745799141162,6.68171099,93483.0,93482.0,4.61622576]
[1745799141659,6.63171099,93483.0,93482.0,4.61622576]
[1745799141822,6.63171099,93483.0,93482.0,4.61172576]
[1745799141823,4.68255514,93483.0,93482.0,4.61172576]
[1745799142025,3.65727614,93483.0,93482.0,4.61172576]
[1745799142417,3.34512014,93483.0,93482.0,4.61172576]
[1745799143033,3.67912014,93483.0,93482.0,4.61172576]
[1745799143312,3.68112014,93483.0,93482.0,4.61172576]
[1745799143610,2.99566099,93483.0,93482.0,4.61172576]
[1745799143945,2.93138099,93483.0,93482.0,4.61172576]
[1745799144696,2.99566099,93483.0,93482.0,4.61172576]
[1745799145123,3.01540183,93483.0,93482.0,4.61172576]
[1745799145730,3.01540183,93483.0,93482.0,4.59917107]
[1745799145731,0.95485659,93483.0,93482.0,4.59917107]
[1745799145935,0.95485659,93483.0,93482.0,4.57322479]
[1745799145936,3.02471574,93483.0,93482.0,4.57322479]
[1745799146137,3.43780659,93483.0,93482.0,4.57322479]
[1745799146311,3.50208659,93483.0,93482.0,4.57322479]
[1745799146912,3.50068183,93483.0,93482.0,4.57322479]
[1745799147108,3.50068183,93483.0,93482.0,4.52060793]
[1745799147316,0.95145183,93483.0,93482.0,4.50775132]
[1745799147978,3.96614399,93483.0,93482.0,4.50775132]
[1745799148223,5.72957699,93483.0,93482.0,4.50775132]
[1745799148439,4.16633499,93483.0,93482.0,4.50775132]
[1745799148641,0.93071099,93483.0,93482.0,4.50775132]
[1745799149064,0.92571099,93483.0,93482.0,4.50775132]
[1745799149263,0.94546272,93483.0,93482.0,4.50775132]
[1745799149493,0.98263672,93483.0,93482.0,4.50775132]
[1745799149701,1.00761193,93483.0,93482.0,4.44077649]
[1745799149898,1.70261193,93483.0,93482.0,4.44077649]
[1745799150135,1.71061193,93483.0,93482.0,4.44077649]
[1745799150319,1.76061193,93483.0,93482.0,3.80727125]
[1745799150518,1.76061193,93483.0,93482.0,3.07396219]
[1745799150693,3.17700575,93483.0,93482.0,2.60273905]
[1745799150899,3.13328686,93483.0,93482.0,1.8878896]
[1745799151103,3.13328686,93483.0,93482.0,1.16821463]
[1745799151305,3.13328686,93483.0,93482.0,0.93260558]
[1745799151469,3.12528686,93483.0,93482.0,0.44939737]
[1745799151700,1.77148686,93483.0,93482.0,0.06651888]
[1745799151908,3.11441886,93483.0,93482.0,0.06651888]
[1745799152135,2.72896903,93483.0,93482.0,0.06651888]
[1745799152363,2.71996903,93483.0,93482.0,0.06651888]
[1745799152603,3.06996903,93483.0,93482.0,0.06651888]
[1745799152847,2.70599382,93483.0,93482.0,0.06651888]
[1745799153093,3.03599382,93483.0,93482.0,0.06651888]
[1745799153326,3.01436716,93483.0,93482.0,0.06651888]
[1745799153557,3.01436716,93483.0,93482.0,0.02346286]
[1745799154661,3.02176716,93483.0,93482.0,0.02346286]
[1745799154953,3.08851744,93483.0,93482.0,0.02346286]
[1745799155157,0.98818544,93483.0,93482.0,0.02346286]
[1745799155368,1.04558544,93483.0,93482.0,0.02346286]
[1745799155692,0.63051878,93476.0,93475.0,4.78324671]
[1745799155888,2.06116253,93476.0,93475.0,4.78324671]
[1745799156122,2.06116253,93476.0,93475.0,4.78759509]
[1745799156343,2.06673298,93476.0,93475.0,4.78759509]
[1745799157168,2.0865299,93476.0,93475.0,4.78759509]
[1745799157540,2.0865299,93476.0,93475.0,4.74474598]
[1745799157740,3.89918231,93476.0,93475.0,4.72984598]
[1745799158012,3.79898231,93476.0,93475.0,4.68699687]
[1745799158166,4.55215521,93476.0,93475.0,4.60129865]
[1745799158369,4.53235829,93476.0,93475.0,4.60129865]
[1745799158576,4.08235829,93476.0,93475.0,4.60129865]
[1745799158815,4.48235829,93476.0,93475.0,4.60129865]
[1745799158992,4.48935829,93476.0,93475.0,4.60129865]
[1745799159203,4.03618539,93476.0,93475.0,4.51560042]
[1745799159416,4.02918539,93476.0,93475.0,4.51560042]
[1745799159605,4.03618539,93476.0,93475.0,4.51560042]
[1745799159842,4.43618539,93476.0,93475.0,4.51560042]
[1745799160180,4.03618539,93476.0,93475.0,4.51560042]
[1745799160387,4.43618539,93476.0,93475.0,4.51560042]
[1745799160608,4.46835939,93476.0,93475.0,4.51560042]
[1745799161196,4.12153229,93476.0,93475.0,4.51560042]
[1745799161414,4.52153229,93476.0,93475.0,4.51527885]
[1745799161628,4.12153229,93476.0,93475.0,4.51527885]
[1745799161854,4.46835939,93476.0,93475.0,4.51527885]
[1745799162069,4.47579503,93476.0,93475.0,4.55674547]
[1745799162273,4.44362103,93476.0,93475.0,4.55674547]
[1745799162921,4.43618539,93476.0,93475.0,4.55674547]
[1745799163345,4.08164454,93476.0,93475.0,4.60614547]
[1745799163764,4.42164454,93476.0,93475.0,4.60614547]
[1745799163968,3.65736454,93476.0,93475.0,4.60614547]
[1745799164498,3.65036454,93476.0,93475.0,4.60614547]
[1745799164981,3.65236454,93476.0,93475.0,4.60614547]
[1745799167708,3.45236454,93476.0,93475.0,4.55352728]
[1745799168558,3.53118539,93476.0,93475.0,4.45512728]
[1745799168762,3.53118539,93476.0,93475.0,4.36942905]
[1745799169176,3.53118539,93476.0,93475.0,4.35687443]
[1745799169775,3.53118539,93476.0,93475.0,4.18547797]
[1745799169997,3.53118539,93476.0,93475.0,4.09977974]
[1745799170153,3.55100901,93476.0,93475.0,4.01408151]
[1745799170524,3.55100901,93476.0,93475.0,3.92838236]
[1745799170525,4.25100901,93476.0,93475.0,3.92838236]
[1745799170726,2.71090001,93476.0,93475.0,3.92838236]
[1745799170926,4.78236801,93476.0,93475.0,3.88533116]
[1745799171239,4.74082501,93476.0,93475.0,3.88533116]